fUST/lending_fUST_20241229
["ID","MTS","AMOUNT","RATE_DAILY","PERIOD"]
[347041622,1735481450657,-500.0,0.0001198,2]
[347041623,1735481450666,-535.06,0.0001198,2]
[347041624,1735481450675,-754.68,0.0001198,2]
[347041625,1735481450684,-1646.12,0.0001198,2]
[347041626,1735481450693,-756.19,0.0001198,2]
[347041627,1735481450702,-598.21,0.0001198,2]
[347041628,1735481450712,-500.0,0.0001198,2]
[347041629,1735481450721,-500.0,0.0001198,2]
[347041630,1735481450731,-1165.8,0.0001198,2]
[347041631,1735481450740,-602.63,0.0001198,2]
[347041632,1735481450750,-717.69,0.0001198,2]
[347041633,1735481450759,-692.5,0.0001198,2]
[347041634,1735481450768,-500.0,0.0001198,2]
[347041635,1735481450777,-500.0,0.0001198,2]
[347041636,1735481450787,-194.75060377,0.0001198,2]
[347041637,1735481450796,-598.29,0.0001198,2]
[347041638,1735481450805,-500.0,0.0001198,2]
[347041639,1735481450814,-500.0,0.0001198,2]
[347041640,1735481450824,-500.0,0.0001198,2]
[347041641,1735481450833,-500.0,0.0001198,2]
[347041642,1735481450842,-500.0,0.0001198,2]
[347041643,1735481450851,-500.0,0.00011981,2]
[347041644,1735481450861,-500.0,0.00011981,2]
[347041645,1735481450870,-14519.97,0.00011981,2]
[347041646,1735481450879,-521.93,0.00011981,2]
[347041647,1735481450889,-1654.88,0.00011982,2]
[347041648,1735481450899,-500.0,0.00011982,2]
[347041649,1735481450908,-500.0,0.00011982,2]
[347041650,1735481450917,-500.0,0.00011982,2]
[347041651,1735481450936,-500.0,0.00011982,2]
[347041652,1735481450947,-500.0,0.00011982,2]
[347041653,1735481450958,-2927.25,0.00011983,2]
[347041654,1735481450968,-587.66,0.00011983,2]
[347041655,1735481450978,-500.0,0.00011983,2]
[347041656,1735481450988,-4583.19,0.00011984,2]
[347041657,1735481450997,-151.0,0.00011999,2]
[347041658,1735481451007,-2898.19487514,0.00012,2]
[347041659,1735481451017,-19292.19338083,0.00012,2]
[347041660,1735481451026,-23838.5390813,0.00012,2]
[347041661,1735481451356,-127.72186555,0.00012,2]
[347041662,1735481451454,-500.0,9.24e-05,2]
[347041663,1735481451545,-450.48015,9.514e-05,2]
[347041664,1735481451723,-1546.95323082,9.148e-05,2]
[347041665,1735481451733,-500.0,9.24e-05,2]
[347041666,1735481451743,-500.0,9.24e-05,2]
[347041667,1735481451753,-49.51985,9.514e-05,2]
[347041668,1735481451763,-500.0,9.514e-05,2]
[347041669,1735481451772,-500.0,9.514e-05,2]
[347041670,1735481451783,-236.8978281,9.788e-05,2]
[347041671,1735481451792,-500.0,9.788e-05,2]
[347041672,1735481451801,-500.0,0.00010062,2]
[347041673,1735481451810,-500.0,0.00010336,2]
[347041674,1735481451820,-500.0,0.00010336,2]
[347041675,1735481451829,-500.0,0.0001061,2]
[347041676,1735481451838,-500.0,0.00010884,2]
[347041677,1735481451847,-500.0,0.00011158,2]
[347041678,1735481451856,-2835319.14171952,0.00012,2]
[347041680,1735481622057,1473.28991532,8.957e-05,2]
[347041681,1735481724970,328.76,0.00014021,30]
[347041682,1735481762112,683.3022281,8.304e-05,2]
[347041684,1735481957988,305.8398107,8.236e-05,2]
[347041685,1735481973151,17985.56804588,8.236e-05,2]
[347041686,1735481973190,1293.5407972,8.236e-05,2]
[347041687,1735481973220,5620.89115692,8.236e-05,2]
[347041688,1735482029671,300.0,8.96e-05,2]
[347041689,1735482051404,-1000.33973294,9.12e-05,2]
[347041690,1735482051433,-500.33973294,9.213e-05,2]
[347041691,1735482051461,-500.0,9.213e-05,2]
[347041692,1735482051490,-300.0,9.231e-05,2]
[347041693,1735482051522,-463.64106824,9.231e-05,2]
[347041694,1735482051535,-36.35893176,9.231e-05,2]
[347041695,1735482051545,-500.0,9.231e-05,2]
[347041696,1735482051555,-361.25277987,9.231e-05,2]
[347041697,1735482051565,-102.72802131,9.231e-05,2]
[347041698,1735482051577,-397.27197869,9.231e-05,2]
[347041699,1735482051586,-103.06775425,9.231e-05,2]
[347041700,1735482051598,-396.93224575,9.231e-05,2]
[347041701,1735482051608,-103.06775425,9.231e-05,2]
[347041702,1735482051623,-300.0,9.231e-05,2]
[347041703,1735482051635,-96.93224575,9.231e-05,2]
[347041704,1735482051648,-403.06775425,9.231e-05,2]
[347041705,1735482059688,-96.93224575,9.231e-05,2]
[347041706,1735482059710,-333.36717737,9.231e-05,2]
[347041707,1735482059733,-500.0,9.231e-05,2]
[347041708,1735482059755,-500.0,9.231e-05,2]
[347041709,1735482059776,-500.0,9.231e-05,2]
[347041710,1735482059798,-500.0,9.231e-05,2]
[347041711,1735482059821,-500.0,9.231e-05,2]
[347041712,1735482059843,-500.0,9.231e-05,2]
[347041713,1735482059866,-500.0,9.231e-05,2]
[347041714,1735482059887,-500.0,9.231e-05,2]
[347041715,1735482059909,-500.0,9.231e-05,2]
[347041716,1735482059930,-500.0,9.231e-05,2]
[347041717,1735482059953,-500.0,9.231e-05,2]
[347041718,1735482059975,-500.0,9.231e-05,2]
[347041719,1735482059996,-500.0,9.231e-05,2]
[347041720,1735482060018,-500.0,9.231e-05,2]
[347041721,1735482060041,-500.0,9.231e-05,2]
[347041722,1735482060063,-500.0,9.231e-05,2]
[347041723,1735482060087,-500.0,9.231e-05,2]
[347041724,1735482060109,-500.0,9.231e-05,2]
[347041725,1735482060131,-500.0,9.231e-05,2]
[347041726,1735482060153,-500.0,9.231e-05,2]
[347041727,1735482060177,-500.0,9.231e-05,2]
[347041728,1735482060283,-500.0,9.231e-05,2]
[347041729,1735482060311,-500.0,9.231e-05,2]
[347041730,1735482060335,-500.0,9.231e-05,2]
[347041731,1735482060358,-500.0,9.231e-05,2]
[347041732,1735482060383,-500.0,9.231e-05,2]
[347041733,1735482060406,-500.0,9.231e-05,2]
[347041734,1735482060429,-500.0,9.231e-05,2]
[347041735,1735482060451,-500.0,9.231e-05,2]
[347041736,1735482060474,-500.0,9.231e-05,2]
[347041737,1735482060497,-500.0,9.231e-05,2]
[347041738,1735482060524,-500.0,9.231e-05,2]
[347041739,1735482060546,-500.0,9.231e-05,2]
[347041740,1735482060568,-500.0,9.231e-05,2]
[347041741,1735482060590,-500.0,9.231e-05,2]
[347041742,1735482060613,-500.0,9.231e-05,2]
[347041743,1735482060636,-459.49737833,9.231e-05,2]
[347041744,1735482060661,-500.0,9.231e-05,2]
[347041745,1735482060683,-500.0,9.231e-05,2]
[347041746,1735482060707,-500.0,9.231e-05,2]
[347041747,1735482060731,-500.0,9.231e-05,2]
[347041748,1735482060754,-500.0,9.231e-05,2]
[347041749,1735482060776,-500.0,9.231e-05,2]
[347041750,1735482060799,-500.0,9.231e-05,2]
[347041751,1735482060821,-500.0,9.231e-05,2]
[347041752,1735482060843,-500.0,9.231e-05,2]
[347041753,1735482060865,-500.0,9.231e-05,2]
[347041754,1735482060887,-500.0,9.231e-05,2]
[347041755,1735482060910,-500.0,9.231e-05,2]
[347041756,1735482060932,-500.0,9.231e-05,2]
[347041757,1735482060954,-500.0,9.231e-05,2]
[347041758,1735482060977,-500.0,9.231e-05,2]
[347041759,1735482061001,-500.0,9.231e-05,2]
[347041760,1735482061027,-500.0,9.231e-05,2]
[347041761,1735482061051,-500.0,9.231e-05,2]
[347041762,1735482061073,-500.0,9.231e-05,2]
[347041763,1735482061096,-500.0,9.231e-05,2]
[347041764,1735482061119,-500.0,9.231e-05,2]
[347041765,1735482061143,-500.0,9.231e-05,2]
[347041766,1735482061173,-500.0,9.231e-05,2]
[347041767,1735482061207,-500.0,9.231e-05,2]
[347041768,1735482061237,-500.0,9.231e-05,2]
[347041769,1735482061268,-500.0,9.231e-05,2]
[347041770,1735482061298,-500.0,9.231e-05,2]
[347041771,1735482061331,-500.0,9.231e-05,2]
[347041772,1735482061360,-500.0,9.231e-05,2]
[347041773,1735482061391,-500.0,9.231e-05,2]
[347041774,1735482061418,-500.0,9.231e-05,2]
[347041775,1735482061448,-500.0,9.231e-05,2]
[347041776,1735482061478,-616.04021678,9.231e-05,2]
[347041777,1735482061511,-500.0,9.231e-05,2]
[347041778,1735482061539,-400.23421606,9.233e-05,2]
[347041779,1735482061563,-230.34143093,9.233e-05,2]
[347041780,1735482061593,-161.23900165,9.233e-05,2]
[347041781,1735482061621,-500.0,9.234e-05,2]
[347041782,1735482061650,-536.16889242,9.234e-05,2]
[347041783,1735482061678,-500.0,9.234e-05,2]
[347041784,1735482061704,-500.0,9.234e-05,2]
[347041785,1735482061730,-524.95170891,9.234e-05,2]
[347041786,1735482061758,-500.0,9.234e-05,2]
[347041787,1735482061785,-500.0,9.234e-05,2]
[347041788,1735482061812,-500.0,9.234e-05,2]
[347041789,1735482061839,-500.0,9.234e-05,2]
[347041790,1735482061865,-500.0,9.234e-05,2]
[347041791,1735482061892,-500.0,9.234e-05,2]
[347041792,1735482061918,-501.03810293,9.234e-05,2]
[347041793,1735482061944,-500.0,9.234e-05,2]
[347041794,1735482061968,-604.32063331,9.234e-05,2]
[347041795,1735482061994,-500.0,9.234e-05,2]
[347041796,1735482062023,-200.13415461,9.234e-05,2]
[347041797,1735482062051,-500.0,9.234e-05,2]
[347041798,1735482062077,-500.0,9.234e-05,2]
[347041799,1735482062104,-403.36272223,9.234e-05,2]
[347041800,1735482062131,-500.0,9.234e-05,2]
[347041801,1735482062157,-500.0,9.234e-05,2]
[347041802,1735482062184,-500.0,9.234e-05,2]
[347041803,1735482062212,-500.0,9.234e-05,2]
[347041804,1735482062349,-500.0,9.234e-05,2]
[347041805,1735482062371,-500.0,9.234e-05,2]
[347041806,1735482062393,-500.0,9.234e-05,2]
[347041807,1735482062416,-500.0,9.234e-05,2]
[347041808,1735482062439,-500.0,9.234e-05,2]
[347041809,1735482062461,-500.0,9.234e-05,2]
[347041810,1735482062483,-500.0,9.234e-05,2]
[347041811,1735482062507,-567.61492206,9.234e-05,2]
[347041812,1735482062529,-500.0,9.234e-05,2]
[347041813,1735482062551,-244.0275391,9.234e-05,2]
[347041814,1735482062573,-500.0,9.234e-05,2]
[347041815,1735482062595,-500.0,9.234e-05,2]
[347041816,1735482062617,-500.0,9.234e-05,2]
[347041817,1735482062641,-500.0,9.234e-05,2]
[347041818,1735482062663,-500.0,9.234e-05,2]
[347041819,1735482062685,-500.0,9.234e-05,2]
[347041820,1735482062707,-550.46081573,9.234e-05,2]
[347041821,1735482062735,-1047.82,9.234e-05,2]
[347041822,1735482062761,-633.62733997,9.234e-05,2]
[347041823,1735482062783,-500.0,9.234e-05,2]
[347041824,1735482062805,-500.0,9.234e-05,2]
[347041825,1735482062827,-503.45911615,9.234e-05,2]
[347041826,1735482062851,-550.08,9.234e-05,2]
[347041827,1735482062873,-500.0,9.234e-05,2]
[347041828,1735482062895,-500.0,9.234e-05,2]
[347041829,1735482062917,-502.04045473,9.234e-05,2]
[347041830,1735482062940,-500.0,9.234e-05,2]
[347041831,1735482062961,-500.0,9.234e-05,2]
[347041832,1735482062984,-500.0,9.234e-05,2]
[347041833,1735482063012,-500.0,9.234e-05,2]
[347041834,1735482063035,-500.0,9.234e-05,2]
[347041835,1735482063058,-503.45301184,9.234e-05,2]
[347041836,1735482063080,-500.0,9.234e-05,2]
[347041837,1735482063104,-500.0,9.234e-05,2]
[347041838,1735482063127,-500.0,9.234e-05,2]
[347041839,1735482063152,-500.0,9.234e-05,2]
[347041840,1735482063176,-500.0,9.234e-05,2]
[347041841,1735482063201,-500.0,9.234e-05,2]
[347041842,1735482063226,-500.0,9.234e-05,2]
[347041843,1735482063252,-500.0,9.234e-05,2]
[347041844,1735482063277,-500.0,9.234e-05,2]
[347041845,1735482063300,-573.50295927,9.234e-05,2]
[347041846,1735482063324,-501.83842667,9.234e-05,2]
[347041847,1735482063348,-500.0,9.234e-05,2]
[347041848,1735482063371,-523.28265591,9.234e-05,2]
[347041849,1735482063395,-500.0,9.234e-05,2]
[347041850,1735482063417,-249.46304998,9.234e-05,2]
[347041851,1735482063442,-502.43764936,9.234e-05,2]
[347041852,1735482063466,-500.0,9.234e-05,2]
[347041853,1735482063490,-500.0,9.234e-05,2]
[347041854,1735482063517,-500.0,9.234e-05,2]
[347041855,1735482063544,-1543.61,9.234e-05,2]
[347041856,1735482063569,-500.0,9.234e-05,2]
[347041857,1735482063594,-500.0,9.234e-05,2]
[347041858,1735482063618,-500.0,9.234e-05,2]
[347041859,1735482063643,-500.0,9.234e-05,2]
[347041860,1735482063667,-500.0,9.234e-05,2]
[347041861,1735482063691,-500.0,9.234e-05,2]
[347041862,1735482063714,-500.0,9.236e-05,2]
[347041863,1735482063740,-500.0,9.236e-05,2]
[347041864,1735482063767,-500.0,9.236e-05,2]
[347041865,1735482063791,-562.95100695,9.236e-05,2]
[347041866,1735482063816,-500.0,9.236e-05,2]
[347041867,1735482063839,-506.96709423,9.236e-05,2]
[347041868,1735482063861,-500.0,9.236e-05,2]
[347041869,1735482063884,-500.0,9.236e-05,2]
[347041870,1735482063907,-501.47704821,9.236e-05,2]
[347041871,1735482063931,-215.39835861,9.236e-05,2]
[347041872,1735482063955,-500.0,9.236e-05,2]
[347041873,1735482063980,-500.0,9.236e-05,2]
[347041874,1735482064005,-500.0,9.236e-05,2]
[347041875,1735482064028,-500.0,9.236e-05,2]
[347041876,1735482064051,-500.0,9.236e-05,2]
[347041877,1735482064076,-500.0,9.236e-05,2]
[347041878,1735482064099,-500.0,9.236e-05,2]
[347041879,1735482064123,-500.0,9.236e-05,2]
[347041880,1735482064145,-500.0,9.236e-05,2]
[347041881,1735482064168,-500.0,9.236e-05,2]
[347041882,1735482064193,-500.0,9.236e-05,2]
[347041883,1735482064218,-500.0,9.236e-05,2]
[347041884,1735482064241,-500.0,9.236e-05,2]
[347041885,1735482064267,-500.0,9.236e-05,2]
[347041886,1735482064290,-500.0,9.236e-05,2]
[347041887,1735482064314,-500.0,9.236e-05,2]
[347041888,1735482064337,-500.0,9.236e-05,2]
[347041889,1735482064359,-500.0,9.236e-05,2]
[347041890,1735482064384,-500.0,9.236e-05,2]
[347041891,1735482064408,-500.0,9.236e-05,2]
[347041892,1735482064516,-500.0,9.236e-05,2]
[347041893,1735482064539,-500.0,9.236e-05,2]
[347041894,1735482064560,-467.19856282,9.236e-05,2]
[347041895,1735482064583,-500.0,9.236e-05,2]
[347041896,1735482064605,-500.0,9.236e-05,2]
[347041897,1735482064628,-500.0,9.236e-05,2]
[347041898,1735482064659,-215.9798502,9.236e-05,2]
[347041899,1735482064683,-898.32,9.236e-05,2]
[347041900,1735482064706,-500.0,9.236e-05,2]
[347041901,1735482064728,-500.0,9.236e-05,2]
[347041902,1735482064754,-545.0,9.236e-05,2]
[347041903,1735482064777,-500.0,9.236e-05,2]
[347041904,1735482064801,-500.0,9.236e-05,2]
[347041905,1735482064824,-500.0,9.236e-05,2]
[347041906,1735482064847,-500.0,9.236e-05,2]
[347041907,1735482064870,-500.0,9.236e-05,2]
[347041908,1735482064893,-500.0,9.236e-05,2]
[347041909,1735482064915,-500.0,9.236e-05,2]
[347041910,1735482064940,-500.0,9.236e-05,2]
[347041911,1735482064963,-500.0,9.236e-05,2]
[347041912,1735482064987,-500.0,9.236e-05,2]
[347041913,1735482065013,-500.0,9.236e-05,2]
[347041914,1735482065036,-500.0,9.236e-05,2]
[347041915,1735482065059,-500.0,9.236e-05,2]
[347041916,1735482065081,-500.0,9.236e-05,2]
[347041917,1735482065103,-500.0,9.236e-05,2]
[347041918,1735482065125,-500.0,9.236e-05,2]
[347041919,1735482065147,-500.0,9.236e-05,2]
[347041920,1735482065169,-500.0,9.236e-05,2]
[347041921,1735482065191,-500.0,9.236e-05,2]
[347041922,1735482065214,-628.92,9.236e-05,2]
[347041923,1735482065236,-287.81,9.236e-05,2]
[347041924,1735482065260,-500.0,9.236e-05,2]
[347041925,1735482065283,-500.0,9.236e-05,2]
[347041926,1735482065306,-874.74,9.236e-05,2]
[347041927,1735482065329,-500.0,9.236e-05,2]
[347041928,1735482065353,-811.09,9.236e-05,2]
[347041929,1735482065375,-500.0,9.236e-05,2]
[347041930,1735482065397,-500.0,9.236e-05,2]
[347041931,1735482065419,-500.0,9.236e-05,2]
[347041932,1735482065442,-500.0,9.236e-05,2]
[347041933,1735482065470,-500.0,9.236e-05,2]
[347041934,1735482065494,-659.6,9.236e-05,2]
[347041935,1735482065518,-500.0,9.236e-05,2]
[347041936,1735482065541,-500.0,9.238e-05,2]
[347041937,1735482065563,-500.0,9.238e-05,2]
[347041938,1735482065584,-500.43113122,9.238e-05,2]
[347041939,1735482065607,-500.0,9.238e-05,2]
[347041940,1735482065630,-549.06,9.238e-05,2]
[347041941,1735482065657,-637.38,9.238e-05,2]
[347041942,1735482065680,-500.0,9.238e-05,2]
[347041943,1735482065702,-500.0,9.238e-05,2]
[347041944,1735482065726,-503.02,9.238e-05,2]
[347041945,1735482065751,-500.0,9.238e-05,2]
[347041946,1735482065773,-500.0,9.238e-05,2]
[347041947,1735482065794,-500.0,9.238e-05,2]
[347041948,1735482065819,-15637.64,9.238e-05,2]
[347041949,1735482065843,-605.72,9.238e-05,2]
[347041950,1735482065866,-500.0,9.238e-05,2]
[347041951,1735482065888,-500.0,9.238e-05,2]
[347041952,1735482065911,-500.0,9.238e-05,2]
[347041953,1735482065933,-500.0,9.238e-05,2]
[347041954,1735482065955,-500.0,9.239e-05,2]
[347041955,1735482065977,-229.82,9.239e-05,2]
[347041956,1735482066001,-500.0,9.239e-05,2]
[347041957,1735482066023,-500.0,9.239e-05,2]
[347041958,1735482066045,-255.13112571,9.239e-05,2]
[347041959,1735482101302,937.8733952,8.951e-05,2]
[347041960,1735482105379,-2268.42777247,9.048e-05,2]
[347041961,1735482105401,-3083.23420829,9.139e-05,2]
[347041962,1735482105424,-300.0,9.23e-05,2]
[347041963,1735482105448,-500.0,9.231e-05,2]
[347041964,1735482105470,-500.0,9.231e-05,2]
[347041965,1735482105492,-500.0,9.231e-05,2]
[347041966,1735482105514,-389.62087041,9.231e-05,2]
[347041967,1735482105537,-500.0,9.231e-05,2]
[347041968,1735482105559,-500.0,9.231e-05,2]
[347041969,1735482105580,-500.0,9.231e-05,2]
[347041970,1735482105601,-466.1,9.231e-05,2]
[347041971,1735482105622,-500.0,9.231e-05,2]
[347041972,1735482105648,-500.0,9.231e-05,2]
[347041973,1735482105670,-500.0,9.231e-05,2]
[347041974,1735482105798,-288.50068806,9.231e-05,2]
[347041975,1735482105823,-500.0,9.231e-05,2]
[347041976,1735482105847,-500.0,9.231e-05,2]
[347041977,1735482105871,-635.21308661,9.231e-05,2]
[347041978,1735482105892,-500.0,9.234e-05,2]
[347041979,1735482105913,-555.27279886,9.234e-05,2]
[347041980,1735482105933,-501.84941109,9.234e-05,2]
[347041981,1735482105955,-500.0,9.234e-05,2]
[347041982,1735482105976,-500.0,9.236e-05,2]
[347041983,1735482105998,-500.0,9.236e-05,2]
[347041984,1735482106019,-500.0,9.236e-05,2]
[347041985,1735482106041,-500.0,9.236e-05,2]
[347041986,1735482106061,-478.18016376,9.236e-05,2]
[347041987,1735482106083,-500.0,9.236e-05,2]
[347041988,1735482106105,-500.0,9.236e-05,2]
[347041989,1735482106126,-500.0,9.236e-05,2]
[347041990,1735482106148,-500.0,9.236e-05,2]
[347041991,1735482106170,-500.0,9.236e-05,2]
[347041992,1735482106192,-500.0,9.236e-05,2]
[347041993,1735482106216,-500.0,9.236e-05,2]
[347041994,1735482106237,-500.0,9.236e-05,2]
[347041995,1735482106259,-244.86887429,9.239e-05,2]
[347041996,1735482106281,-503.4221347,9.24e-05,2]
[347041997,1735482106305,-500.0,9.24e-05,2]
[347041998,1735482106327,-500.0,9.24e-05,2]
[347041999,1735482106351,-500.0,9.24e-05,2]
[347042000,1735482106373,-611.47196186,9.24e-05,2]
[347042001,1735482106396,-500.0,9.24e-05,2]
[347042002,1735482106419,-500.0,9.24e-05,2]
[347042003,1735482106440,-500.0,9.24e-05,2]
[347042004,1735482106463,-503.54533713,9.24e-05,2]
[347042005,1735482106485,-500.0,9.24e-05,2]
[347042006,1735482106506,-502.32157473,9.24e-05,2]
[347042007,1735482106527,-500.0,9.24e-05,2]
[347042008,1735482106549,-500.0,9.24e-05,2]
[347042009,1735482106571,-500.0,9.24e-05,2]
[347042010,1735482106592,-500.0,9.24e-05,2]
[347042011,1735482106614,-500.0,9.24e-05,2]
[347042012,1735482106636,-500.0,9.24e-05,2]
[347042013,1735482106661,-500.0,9.24e-05,2]
[347042014,1735482106683,-505.10758507,9.24e-05,2]
[347042015,1735482106704,-500.0,9.24e-05,2]
[347042016,1735482106727,-500.0,9.24e-05,2]
[347042017,1735482106748,-500.0,9.24e-05,2]
[347042018,1735482106770,-500.0,9.24e-05,2]
[347042019,1735482106792,-500.0,9.24e-05,2]
[347042020,1735482106814,-500.0,9.24e-05,2]
[347042021,1735482106835,-500.93744552,9.24e-05,2]
[347042022,1735482106857,-500.0,9.24e-05,2]
[347042023,1735482106880,-500.0,9.24e-05,2]
[347042024,1735482106902,-500.0,9.24e-05,2]
[347042025,1735482106924,-500.0,9.24e-05,2]
[347042026,1735482106946,-500.0,9.24e-05,2]
[347042027,1735482106968,-500.0,9.24e-05,2]
[347042028,1735482106990,-500.0,9.24e-05,2]
[347042029,1735482107012,-500.0,9.24e-05,2]
[347042030,1735482107035,-500.0,9.24e-05,2]
[347042031,1735482107059,-500.0,9.24e-05,2]
[347042032,1735482107083,-500.0,9.24e-05,2]
[347042033,1735482107106,-500.0,9.24e-05,2]
[347042034,1735482107127,-500.0,9.24e-05,2]
[347042035,1735482107149,-195.41353016,9.24e-05,2]
[347042036,1735482107172,-500.71400087,9.24e-05,2]
[347042037,1735482107196,-500.0,9.24e-05,2]
[347042038,1735482107217,-500.0,9.24e-05,2]
[347042039,1735482107239,-500.0,9.24e-05,2]
[347042040,1735482107261,-500.0,9.24e-05,2]
[347042041,1735482107283,-500.0,9.24e-05,2]
[347042042,1735482107304,-500.90037629,9.24e-05,2]
[347042043,1735482107326,-577.73711745,9.24e-05,2]
[347042044,1735482107348,-500.0,9.24e-05,2]
[347042045,1735482107370,-500.0,9.24e-05,2]
[347042046,1735482107392,-500.0,9.24e-05,2]
[347042047,1735482107415,-500.0,9.24e-05,2]
[347042048,1735482107437,-495.31853385,9.24e-05,2]
[347042049,1735482107460,-500.0,9.24e-05,2]
[347042050,1735482107483,-500.0,9.24e-05,2]
[347042051,1735482107504,-192.63204232,9.24e-05,2]
[347042052,1735482107525,-500.0,9.24e-05,2]
[347042053,1735482107548,-500.0,9.24e-05,2]
[347042054,1735482107646,-574.70066843,9.24e-05,2]
[347042055,1735482107668,-500.0,9.24e-05,2]
[347042056,1735482107691,-500.58308084,9.24e-05,2]
[347042057,1735482107713,-228.93834509,9.24e-05,2]
[347042058,1735482107737,-321.27902234,9.24e-05,2]
[347042059,1735482107758,-501.84504299,9.24e-05,2]
[347042060,1735482107779,-500.0,9.24e-05,2]
[347042061,1735482107800,-500.0,9.24e-05,2]
[347042062,1735482107823,-500.0,9.24e-05,2]
[347042063,1735482107844,-502.25404249,9.24e-05,2]
[347042064,1735482107864,-500.0,9.24e-05,2]
[347042065,1735482107885,-502.08589558,9.24e-05,2]
[347042066,1735482107906,-500.0,9.24e-05,2]
[347042067,1735482107927,-500.0,9.24e-05,2]
[347042068,1735482107948,-507.7857051,9.24e-05,2]
[347042069,1735482107969,-500.0,9.24e-05,2]
[347042070,1735482107990,-513.00553451,9.24e-05,2]
[347042071,1735482108011,-508.66148769,9.24e-05,2]
[347042072,1735482108035,-500.0,9.24e-05,2]
[347042073,1735482108057,-501.85536329,9.24e-05,2]
[347042074,1735482108079,-500.0,9.24e-05,2]
[347042075,1735482108101,-500.0,9.24e-05,2]
[347042076,1735482108124,-500.80515919,9.24e-05,2]
[347042077,1735482108146,-500.0,9.24e-05,2]
[347042078,1735482108167,-420.30726341,9.24e-05,2]
[347042079,1735482108189,-501.47716561,9.24e-05,2]
[347042080,1735482108211,-500.0,9.24e-05,2]
[347042081,1735482108233,-500.0,9.24e-05,2]
[347042082,1735482108256,-500.0,9.24e-05,2]
[347042083,1735482108277,-500.0,9.24e-05,2]
[347042084,1735482108303,-500.0,9.24e-05,2]
[347042085,1735482108326,-500.0,9.24e-05,2]
[347042086,1735482108348,-500.50647208,9.24e-05,2]
[347042087,1735482108371,-502.07183632,9.24e-05,2]
[347042088,1735482108394,-500.0,9.24e-05,2]
[347042089,1735482108416,-500.0,9.24e-05,2]
[347042090,1735482108440,-501.78865278,9.24e-05,2]
[347042091,1735482108463,-500.0,9.24e-05,2]
[347042092,1735482108485,-503.43070139,9.24e-05,2]
[347042093,1735482108507,-217.75365362,9.24e-05,2]
[347042094,1735482108528,-500.0,9.24e-05,2]
[347042095,1735482108553,-500.0,9.24e-05,2]
[347042096,1735482108576,-500.0,9.24e-05,2]
[347042097,1735482108599,-502.68230553,9.24e-05,2]
[347042098,1735482108621,-503.91833629,9.24e-05,2]
[347042099,1735482108644,-501.65321996,9.24e-05,2]
[347042100,1735482108667,-500.0,9.24e-05,2]
[347042101,1735482108689,-500.0,9.24e-05,2]
[347042102,1735482108711,-500.0,9.24e-05,2]
[347042103,1735482108736,-500.0,9.24e-05,2]
[347042104,1735482108760,-500.0,9.24e-05,2]
[347042105,1735482108782,-153.40461315,9.24e-05,2]
[347042106,1735482108804,-500.0,9.24e-05,2]
[347042107,1735482108828,-500.0,9.24e-05,2]
[347042108,1735482108850,-500.0,9.24e-05,2]
[347042109,1735482108871,-500.0,9.24e-05,2]
[347042110,1735482108893,-500.0,9.24e-05,2]
[347042111,1735482108917,-500.0,9.24e-05,2]
[347042112,1735482108939,-500.0,9.24e-05,2]
[347042113,1735482108961,-500.0,9.24e-05,2]
[347042114,1735482108985,-500.0,9.24e-05,2]
[347042115,1735482109007,-500.0,9.24e-05,2]
[347042116,1735482109031,-201.86590635,9.24e-05,2]
[347042117,1735482109053,-501.90122122,9.24e-05,2]
[347042118,1735482109076,-502.71200867,9.24e-05,2]
[347042119,1735482109098,-500.0,9.24e-05,2]
[347042120,1735482109120,-502.97086065,9.24e-05,2]
[347042121,1735482109142,-500.0,9.24e-05,2]
[347042122,1735482109165,-501.74159723,9.24e-05,2]
[347042123,1735482109187,-500.0,9.24e-05,2]